bitfinex/quotes_SOLUSD_20241116
["timestamp","ask_amount","ask_price","bid_price","bid_amount"]
[1731764702859,22.02672598,219.02,218.95,22.02672598]
[1731764703040,22.02672598,219.03,218.96,22.02672598]
[1731764703239,22.02672598,219.04,218.97,22.02672598]
[1731764703648,22.02672598,219.05,218.98,22.02672598]
[1731764703850,0.496215,219.06,219.0,22.02672598]
[1731764704050,22.02672598,219.05,218.98,22.02672598]
[1731764704259,22.02672598,219.05,218.98,26.59322598]
[1731764704845,0.09367462,218.99,218.94,11.4186]
[1731764705060,22.1204006,218.97,218.9,22.02672598]
[1731764705439,22.02672598,218.98,218.91,22.02672598]
[1731764705641,20.25098,219.04,218.89,4.5685]
[1731764705865,0.09367462,219.03,218.89,4.5685]
[1731764706066,20.25098,219.04,218.93,26.59422598]
[1731764706067,0.09367462,218.99,218.93,26.59422598]
[1731764706254,22.02672598,218.98,218.93,4.5675]
[1731764706441,22.02672598,219.0,218.93,26.59422598]
[1731764706844,0.09367462,218.99,218.93,26.59422598]
[1731764707244,22.1204006,218.99,218.93,4.5675]
[1731764707445,22.02672598,218.98,218.93,4.5675]
[1731764707744,22.02672598,218.97,218.9,22.02672598]
[1731764708244,22.02672598,218.97,218.9,26.59492598]
[1731764709750,22.02672598,218.94,218.89,11.4212]
[1731764710280,2.7403,218.96,218.89,11.4212]
[1731764710281,22.02672598,218.95,218.89,11.4212]
[1731764710464,22.02672598,218.94,218.89,11.4212]
[1731764710967,22.02672598,218.95,218.88,22.02672598]
[1731764711962,22.02672598,218.95,218.88,26.59522598]
[1731764712749,22.02672598,218.94,218.87,11.422]
[1731764713059,22.02672598,218.93,218.87,11.422]
[1731764713268,22.02672598,218.93,218.86,22.02672598]
[1731764714151,22.02672598,218.96,218.89,22.02672598]
[1731764714559,22.1204006,218.95,218.88,22.02672598]
[1731764714754,13.86042274,218.95,218.88,13.76674812]
[1731764714947,13.76674812,218.94,218.87,13.76674812]
[1731764715562,13.76674812,218.94,218.87,18.33554812]
[1731764715765,13.76674812,218.92,218.86,11.4228]
[1731764716156,13.76674812,218.92,218.85,13.76674812]
[1731764716365,16.50734812,218.93,218.86,13.76674812]
[1731764716546,13.76674812,218.94,218.87,13.76674812]
[1731764716864,0.09367462,218.93,218.88,13.76674812]
[1731764717058,0.09367462,218.93,218.87,13.76674812]
[1731764717378,2.7397,219.0,218.82,13.76674812]
[1731764717379,13.86042274,218.89,218.82,13.76674812]
[1731764717551,0.09367462,218.86,218.8,13.76674812]
[1731764717752,13.86042274,218.86,218.79,13.76674812]
[1731764718451,0.09367462,218.82,218.76,13.76674812]
[1731764718677,13.76674812,218.86,218.79,13.76674812]
[1731764719147,13.76674812,218.85,218.79,13.76674812]
[1731764720964,16.60212274,218.84,218.77,13.76674812]
[1731764721177,0.09367462,218.82,218.76,25.19454812]
[1731764721685,13.76674812,218.85,218.78,13.76674812]
[1731764721895,0.12549,218.89,218.83,13.76674812]
[1731764722052,13.76674812,218.94,218.87,13.76674812]
[1731764722257,2.7403,218.95,218.77,20.0]
[1731764722677,16.50704812,218.95,218.88,13.76674812]
[1731764723273,13.86042274,218.94,218.87,18.33554812]
[1731764723673,0.09367462,218.94,218.88,13.76674812]
[1731764723863,13.86042274,218.94,218.87,18.33554812]
[1731764724066,13.86042274,218.94,218.85,11.4231]
[1731764724067,13.86042274,218.92,218.85,11.4231]
[1731764724370,0.09367462,218.87,218.81,13.76674812]
[1731764724676,0.09367462,218.89,218.82,13.76674812]
[1731764724677,13.76674812,218.89,218.82,13.76674812]
[1731764724875,13.76674812,218.91,218.84,13.76674812]
[1731764725093,0.09367462,218.89,218.84,13.76674812]
[1731764725371,13.86042274,218.87,218.8,29.76264812]
[1731764725572,0.09367462,218.85,218.8,15.9959]
[1731764726159,0.09367462,218.86,218.81,13.76674812]
[1731764726567,13.76674812,218.88,218.8,15.9959]
[1731764726767,22.03530194,218.92,218.85,22.03530194]
[1731764726965,22.03530194,218.93,218.86,22.03530194]
[1731764727359,22.03530194,218.95,218.88,22.03530194]
[1731764728283,0.09367462,218.94,218.88,26.60390194]
[1731764729688,0.09367462,218.9,218.84,22.03530194]
[1731764729872,22.03530194,218.9,218.83,22.03530194]
[1731764730069,22.12897656,218.89,218.82,22.03530194]
[1731764730369,0.09367462,218.87,218.82,22.03530194]
[1731764730575,22.12897656,218.87,218.81,11.4251]
[1731764730881,0.09367462,218.87,218.81,38.03050194]
[1731764731062,0.09367462,218.87,218.81,33.46040194]
[1731764731590,22.12897656,218.87,218.81,11.4251]
[1731764732285,22.03530194,218.82,218.76,11.4276]
[1731764732491,0.21916462,218.77,218.69,4.5726]
[1731764732663,0.09367462,218.75,218.69,26.60790194]
[1731764733057,22.03530194,218.76,218.69,22.03530194]
[1731764733263,22.03530194,218.76,218.68,22.03530194]
[1731764733482,22.03530194,218.76,218.69,22.03530194]
[1731764734374,22.03530194,218.76,218.69,26.60780194]
[1731764734590,0.09367462,218.76,218.7,22.03530194]
[1731764734898,22.03530194,218.82,218.75,22.03530194]
[1731764735271,22.12897656,218.81,218.74,22.03530194]
[1731764735465,22.12897656,218.81,218.73,22.03530194]
[1731764735667,22.03530194,218.8,218.73,22.03530194]
[1731764735862,22.03530194,218.8,218.69,16.0042]
[1731764735863,0.09367462,218.77,218.7,22.03530194]
[1731764736281,22.03530194,218.79,218.72,22.03530194]
[1731764736586,22.03530194,218.78,218.71,22.03530194]
[1731764736787,0.09367462,218.77,218.71,22.03530194]
[1731764737171,0.09367462,218.77,218.7,38.03880194]
[1731764737374,22.03530194,218.78,218.7,38.03880194]
[1731764737375,0.09367462,218.76,218.71,22.03530194]
[1731764737764,22.03530194,218.79,218.7,11.4311]
[1731764737765,0.25098,218.78,218.73,22.03530194]
[1731764738477,23.776884,218.79,218.73,22.03530194]
[1731764738785,22.03530194,218.81,218.74,26.60690194]
[1731764738984,22.03530194,218.85,218.78,22.03530194]
[1731764739172,22.03530194,218.86,218.79,22.03530194]
[1731764739377,22.03530194,218.87,218.8,22.03530194]
[1731764739588,22.03530194,218.85,218.77,22.03530194]
[1731764740290,0.09367462,218.82,218.76,22.03530194]
[1731764740496,22.12897656,218.83,218.76,22.03530194]
[1731764740665,0.09367462,218.83,218.76,22.03530194]
[1731764741204,22.03530194,218.82,218.75,22.03530194]
[1731764741372,22.12897656,218.83,218.76,22.03530194]
[1731764741900,22.03530194,218.8,218.72,22.03530194]
[1731764742084,22.03530194,218.76,218.69,38.03960194]
[1731764742600,22.03530194,218.75,218.69,11.4317]
[1731764742894,9.5964,218.83,218.66,11.65744016]
[1731764742895,22.03530194,218.71,218.66,11.65744016]
[1731764743075,22.03530194,218.72,218.66,11.65744016]
[1731764743272,0.09367462,218.7,218.66,11.65744016]
[1731764743479,22.03530194,218.68,218.66,11.65744016]
[1731764743790,22.03530194,218.69,218.66,11.65744016]
[1731764743987,0.09367462,218.67,218.66,11.65744016]
[1731764744295,22.03530194,218.69,218.66,11.65744016]
[1731764744792,22.03530194,218.68,218.66,11.65744016]
[1731764745169,22.03530194,218.67,218.66,11.65744016]
[1731764745369,22.12897656,218.67,218.66,11.65744016]
[1731764745890,22.03530194,218.67,218.66,11.65744016]
[1731764748798,24.77910194,218.67,218.66,11.65744016]
[1731764748988,24.77910194,218.67,218.56,4.5753]
[1731764748989,24.12153862,218.66,218.56,4.5753]
[1731764749178,22.03530194,218.62,218.56,4.5753]
[1731764749784,22.03530194,218.59,218.54,11.4394]
[1731764749974,0.25098,218.65,218.54,11.4394]
[1731764749975,22.03530194,218.58,218.54,11.4394]
[1731764750283,22.03530194,218.59,218.52,4.5761]
[1731764750795,22.03530194,218.58,218.51,22.03530194]
[1731764750979,22.03530194,218.57,218.5,26.61180194]
[1731764751183,22.03530194,218.55,218.49,11.442]
[1731764751376,22.03530194,218.53,218.49,11.442]
[1731764751706,22.03530194,218.54,218.49,11.442]
[1731764752085,0.09367462,218.59,218.49,11.442]
[1731764752086,22.03530194,218.56,218.49,33.47730194]
[1731764752291,22.03530194,218.59,218.52,22.03530194]
[1731764752825,22.03530194,218.6,218.53,22.03530194]
[1731764753803,22.03530194,218.62,218.55,22.03530194]
[1731764754095,22.03530194,218.63,218.56,22.03530194]
[1731764754282,22.03530194,218.64,218.57,22.03530194]
[1731764754474,24.77940194,218.65,218.58,22.03530194]
[1731764754675,22.03530194,218.66,218.59,22.03530194]
[1731764755092,22.03530194,218.66,218.59,26.61000194]
[1731764755299,22.03530194,218.65,218.58,22.03530194]
[1731764755805,22.03530194,218.64,218.57,38.04820194]
[1731764756174,22.03530194,218.62,218.55,4.5756]
[1731764756573,22.03530194,218.61,218.54,22.03530194]
[1731764756771,22.03530194,218.65,218.58,22.03530194]
[1731764756975,22.03530194,218.66,218.59,22.03530194]
[1731764757197,24.77930194,218.66,218.59,22.03530194]
[1731764757696,22.03530194,218.66,218.59,22.03530194]
[1731764758272,22.03530194,218.66,218.58,22.03530194]
[1731764758895,22.03530194,218.65,218.58,22.03530194]
[1731764759077,24.77940194,218.65,218.58,22.03530194]
[1731764759284,22.03530194,218.66,218.59,22.03530194]
[1731764759780,22.03530194,218.67,218.6,22.03530194]
[1731764759987,9.69357462,218.75,218.56,16.0139]
[1731764759988,22.03530194,218.69,218.62,22.03530194]
[1731764760190,23.776884,218.68,218.62,22.03530194]
[1731764760384,22.03530194,218.67,218.6,22.03530194]
[1731764761278,22.03530194,218.67,218.59,26.60990194]
[1731764761479,22.03530194,218.67,218.6,22.03530194]
[1731764761698,24.77900194,218.68,218.6,22.03530194]
[1731764761879,22.03530194,218.63,218.56,22.03530194]
[1731764762304,22.03530194,218.64,218.57,22.03530194]
[1731764762486,22.03530194,218.66,218.59,22.03530194]
[1731764762675,22.03530194,218.67,218.6,22.03530194]
[1731764762879,22.03530194,218.67,218.59,22.03530194]
[1731764763084,22.03530194,218.67,218.6,22.03530194]
[1731764763481,24.77920194,218.67,218.6,22.03530194]
[1731764763882,22.03530194,218.66,218.59,22.03530194]
[1731764764785,22.03530194,218.62,218.56,11.4383]
[1731764765098,22.03530194,218.63,218.56,11.4383]
[1731764765305,22.03530194,218.63,218.56,38.04900194]
[1731764765504,22.03530194,218.64,218.56,38.04900194]
[1731764765694,23.776884,218.63,218.56,38.04900194]
[1731764766003,22.03530194,218.62,218.56,11.4383]
[1731764766205,22.03530194,218.63,218.56,33.47360194]
[1731764767105,24.77970194,218.63,218.56,33.47360194]
[1731764767306,22.12897656,218.62,218.55,22.03530194]
[1731764767603,22.03530194,218.61,218.54,22.03530194]
[1731764767829,22.03530194,218.6,218.53,22.03530194]
[1731764768010,0.09367462,218.59,218.53,22.03530194]
[1731764768192,45.81218594,218.56,218.47,4.5772]
[1731764768390,45.81218594,218.56,218.48,22.03530194]
[1731764768584,45.81218594,218.56,218.46,11.4434]
[1731764768585,45.81218594,218.56,218.49,22.03530194]
[1731764769097,26.522184,218.56,218.49,22.03530194]
[1731764769283,48.55748594,218.56,218.49,22.03530194]
[1731764769489,22.03530194,218.55,218.47,26.61240194]
[1731764769813,26.522184,218.56,218.47,22.03530194]
[1731764769814,45.81218594,218.54,218.47,22.03530194]
[1731764769986,22.03530194,218.55,218.47,22.03530194]
[1731764770191,48.55748594,218.56,218.48,22.03530194]
[1731764770693,23.776884,218.51,218.41,16.0245]
[1731764770907,45.81218594,218.51,218.44,22.03530194]
[1731764771090,26.522784,218.51,218.45,22.03530194]
[1731764771292,22.03530194,218.48,218.41,33.48140194]
[1731764771498,23.776884,218.48,218.42,22.03530194]
[1731764771704,0.09367462,218.5,218.42,22.03530194]
[1731764771892,23.776884,218.49,218.42,22.03530194]
[1731764772096,23.776884,218.49,218.43,22.03530194]
[1731764772680,26.522984,218.49,218.43,22.03530194]
[1731764773500,22.03530194,218.48,218.41,33.48140194]
[1731764774012,22.03530194,218.48,218.41,11.4461]
[1731764774311,26.522984,218.49,218.4,33.70655659]
[1731764774312,45.81218594,218.47,218.4,33.70655659]
[1731764774491,23.776884,218.47,218.4,33.70655659]
[1731764774810,24.78160194,218.48,218.4,33.70655659]
[1731764775013,24.78160194,218.48,218.41,22.03530194]
[1731764775707,24.87497656,218.5,218.43,22.03530194]
[1731764775891,23.776884,218.49,218.43,22.03530194]
[1731764776093,45.81218594,218.49,218.42,22.03530194]
[1731764776300,22.03530194,218.48,218.41,22.03530194]
[1731764776705,24.78160194,218.48,218.41,22.03530194]
[1731764777595,22.03530194,218.47,218.4,33.70655659]
[1731764778310,2.7463,218.48,218.4,11.67125465]
[1731764778311,22.03530194,218.43,218.4,11.67125465]
[1731764778491,22.03530194,218.41,218.4,11.67125465]
[1731764778694,22.03530194,218.43,218.4,11.67125465]
[1731764778890,13.83285411,218.43,218.36,13.83285411]
[1731764779308,2.7468,218.44,218.37,13.83285411]
[1731764779309,16.57965411,218.44,218.37,13.83285411]
[1731764779513,16.57965411,218.44,218.32,16.0314]
[1731764779514,16.57965411,218.44,218.36,13.83285411]
[1731764779727,13.83285411,218.46,218.39,13.83285411]
[1731764780038,13.83285411,218.48,218.41,13.83285411]
[1731764780538,13.83285411,218.46,218.39,13.83285411]
[1731764780833,16.57935411,218.46,218.38,13.83285411]
[1731764781207,13.83285411,218.45,218.38,13.83285411]
[1731764782111,13.83285411,218.44,218.37,13.83285411]
[1731764782602,2.7467,218.44,218.37,13.83285411]
[1731764783426,2.7467,218.44,218.38,13.83285411]
[1731764784011,2.7467,218.44,218.4,13.83285411]
[1731764784211,0.1,218.59,218.43,13.83285411]
[1731764784426,13.83285411,218.55,218.48,13.83285411]
[1731764784726,13.83285411,218.57,218.5,13.83285411]
[1731764784927,13.83285411,218.57,218.38,0.34465462]
[1731764784928,2.7447,218.6,218.53,13.83285411]
[1731764785237,13.83285411,218.65,218.58,13.83285411]
[1731764785420,2.7438,218.67,218.61,13.83285411]
[1731764785609,13.716,218.73,218.63,13.83285411]
[1731764785610,13.83285411,218.7,218.63,13.83285411]
[1731764785805,2.7431,218.73,218.57,13.83285411]
[1731764785806,16.57595411,218.73,218.66,13.83285411]
[1731764786112,13.93285411,218.79,218.58,44.12153862]
[1731764786113,2.7424,218.78,218.58,44.12153862]
[1731764786323,2.7422,218.8,218.73,13.83285411]
[1731764786709,13.83285411,218.79,218.72,13.83285411]
[1731764786914,22.06215599,218.79,218.72,22.06215599]
[1731764787109,22.06215599,218.75,218.67,22.06215599]
[1731764787308,22.06215599,218.74,218.67,22.06215599]
[1731764787506,2.83547462,218.83,218.7,22.06215599]
[1731764787507,22.06215599,218.77,218.7,22.06215599]
[1731764787718,22.06215599,218.79,218.71,22.06215599]
[1731764787914,22.06215599,218.79,218.72,22.06215599]
[1731764788332,22.06215599,218.79,218.71,22.06215599]
[1731764788549,22.06215599,218.78,218.71,22.06215599]
[1731764788840,2.7423,218.79,218.73,22.06215599]
[1731764789632,2.7423,218.79,218.73,12.20215599]
[1731764790029,22.06215599,218.77,218.7,22.06215599]
[1731764790414,22.06215599,218.78,218.71,22.06215599]
[1731764790914,24.80445599,218.79,218.71,22.06215599]
[1731764791129,22.06215599,218.77,218.7,22.06215599]
[1731764791635,22.06215599,218.73,218.66,22.06215599]
[1731764792421,22.06215599,218.71,218.64,22.06215599]
[1731764792733,22.06215599,218.71,218.63,11.4348]
[1731764792734,22.06215599,218.71,218.63,33.49695599]
[1731764792936,22.06215599,218.7,218.63,22.06215599]
[1731764793240,2.7436,218.69,218.63,22.06215599]
[1731764793431,24.80575599,218.69,218.61,22.06215599]
[1731764793625,22.06215599,218.68,218.61,22.06215599]
[1731764793811,22.06215599,218.67,218.6,22.06215599]
[1731764794012,22.06215599,218.65,218.58,22.06215599]
[1731764794208,22.06215599,218.64,218.57,22.06215599]
[1731764794436,22.06215599,218.64,218.56,22.06215599]
[1731764794847,22.06215599,218.62,218.55,22.06215599]
[1731764795134,24.80675599,218.61,218.54,22.06215599]
[1731764795344,24.80675599,218.61,218.53,22.06215599]
[1731764795825,22.06215599,218.6,218.53,22.06215599]
[1731764796206,22.06215599,218.58,218.51,33.50275599]
[1731764796407,22.06215599,218.58,218.5,22.06215599]
[1731764797210,2.7451,218.57,218.5,22.06215599]
[1731764797444,22.06215599,218.56,218.48,22.06215599]
[1731764798120,22.06215599,218.55,218.48,22.06215599]
[1731764798339,2.7451,218.57,218.49,22.06215599]
[1731764798340,22.06215599,218.56,218.49,22.06215599]
[1731764798712,22.06215599,218.56,218.48,22.06215599]
[1731764798908,22.06215599,218.55,218.48,22.06215599]
[1731764799335,24.80755599,218.55,218.48,22.06215599]
[1731764799547,24.80725599,218.57,218.5,22.06215599]
[1731764799833,6.8606,218.64,218.46,16.021]
[1731764799834,22.06215599,218.63,218.56,22.06215599]
[1731764800136,0.09367462,218.62,218.56,22.06215599]
[1731764800922,2.7446,218.61,218.56,22.06215599]
[1731764801638,2.7446,218.61,218.55,22.06215599]
[1731764802155,6.8589,218.7,218.6,22.06215599]
[1731764802156,22.06215599,218.67,218.6,22.06215599]
[1731764802439,6.8589,218.7,218.63,22.06215599]
[1731764802440,2.7436,218.69,218.63,22.06215599]
[1731764802811,22.06215599,218.64,218.47,38.9068]
[1731764803018,0.09367462,218.68,218.47,38.9068]
[1731764803221,22.06215599,218.63,218.56,22.06215599]
[1731764803434,22.06215599,218.65,218.58,22.06215599]
[1731764803623,24.80575599,218.69,218.62,22.06215599]
[1731764803820,0.09367462,218.67,218.61,22.06215599]
[1731764804148,22.06215599,218.64,218.57,22.06215599]
[1731764804719,22.06215599,218.65,218.58,22.06215599]
[1731764805133,2.7442,218.64,218.58,22.06215599]
[1731764806638,2.7442,218.64,218.57,22.06215599]
[1731764806639,24.80635599,218.64,218.57,22.06215599]
[1731764807545,22.06215599,218.62,218.55,22.06215599]
[1731764807749,2.7442,218.64,218.58,22.06215599]
[1731764808124,2.7442,218.64,218.57,22.06215599]
[1731764808325,24.80635599,218.64,218.56,22.06215599]
[1731764809018,22.06215599,218.63,218.55,22.06215599]
[1731764809527,2.7444,218.63,218.56,22.06215599]
[1731764809928,2.7444,218.63,218.57,22.06215599]
[1731764810131,2.7444,218.63,218.56,22.06215599]
[1731764810352,22.06215599,218.6,218.53,22.06215599]
[1731764810944,0.09367462,218.62,218.54,22.06215599]
[1731764810945,22.06215599,218.61,218.54,22.06215599]
[1731764811331,2.7451,218.57,218.51,22.06215599]
[1731764811846,2.7448,218.59,218.52,22.06215599]
[1731764812030,2.7448,218.59,218.53,22.06215599]
[1731764812344,2.7448,218.59,218.54,22.06215599]
[1731764812743,2.7448,218.59,218.53,22.06215599]
[1731764813250,2.7448,218.59,218.54,22.06215599]
[1731764813947,2.7444,218.63,218.57,22.06215599]
[1731764814149,2.7444,218.63,218.58,22.06215599]
[1731764814320,22.06215599,218.68,218.61,22.06215599]
[1731764814524,22.06215599,218.71,218.63,22.06215599]
[1731764814732,22.06215599,218.71,218.64,22.06215599]
[1731764815360,2.7434,218.7,218.64,22.06215599]
[1731764816225,2.7434,218.7,218.63,22.06215599]
[1731764816428,22.06215599,218.69,218.62,22.06215599]
[1731764816648,24.80555599,218.7,218.63,22.06215599]
[1731764816860,22.06215599,218.71,218.64,22.06215599]
[1731764817057,22.06215599,218.77,218.7,22.06215599]
[1731764817359,22.06215599,218.79,218.72,22.06215599]
[1731764817537,0.09367462,218.78,218.72,22.06215599]
[1731764817747,22.06215599,218.78,218.71,22.06215599]
[1731764818045,2.7422,218.8,218.75,22.06215599]
[1731764818240,2.7422,218.8,218.76,22.06215599]
[1731764818441,22.06215599,218.8,218.73,22.06215599]
[1731764818656,0.09367462,218.84,218.7,22.06215599]
[1731764818853,0.09367462,218.84,218.67,4.573]
[1731764819442,0.09367462,218.82,218.64,4.5735]
[1731764819660,20.09367462,218.8,218.64,16.0078]
[1731764819960,22.06215599,218.77,218.7,22.06215599]
[1731764820164,22.06215599,218.75,218.68,22.06215599]
[1731764820343,22.06215599,218.76,218.69,22.06215599]
[1731764820543,24.80475599,218.77,218.7,22.06215599]
[1731764820741,0.09367462,218.74,218.66,22.06215599]
[1731764820953,20.09367462,218.75,218.58,11.437]
[1731764821257,20.09367462,218.73,218.56,4.5752]
[1731764821566,0.09367462,218.69,218.56,4.5752]
[1731764822060,20.09367462,218.69,218.56,4.5752]
[1731764822274,22.06215599,218.66,218.59,22.06215599]
[1731764822451,22.06215599,218.65,218.58,22.06215599]
[1731764822961,22.06215599,218.64,218.56,22.06215599]
[1731764823548,22.06215599,218.63,218.56,22.06215599]
[1731764823850,22.06215599,218.64,218.56,22.06215599]
[1731764824769,2.7443,218.63,218.57,22.06215599]
[1731764825362,24.80645599,218.63,218.56,22.06215599]
[1731764825668,2.7443,218.63,218.56,22.06215599]
[1731764825967,22.06215599,218.63,218.56,22.06215599]
[1731764826368,22.06215599,218.62,218.55,22.06215599]
[1731764826575,22.06215599,218.62,218.54,22.06215599]
[1731764827262,22.06215599,218.62,218.55,22.06215599]
[1731764827447,24.80675599,218.62,218.55,22.06215599]
[1731764828068,2.7446,218.62,218.56,22.06215599]
[1731764828453,2.7446,218.62,218.55,22.06215599]
[1731764828751,22.06215599,218.59,218.52,22.06215599]
[1731764829062,22.06215599,218.66,218.57,22.06215599]
[1731764829263,22.06215599,218.64,218.55,22.06215599]
[1731764829659,22.06215599,218.61,218.54,22.06215599]
[1731764830267,22.06215599,218.61,218.53,22.06215599]
[1731764830473,22.06215599,218.66,218.58,22.06215599]
[1731764830642,22.06215599,218.66,218.59,22.06215599]
[1731764831066,22.06215599,218.67,218.59,22.06215599]
[1731764831646,22.06215599,218.63,218.55,22.06215599]
[1731764831856,22.06215599,218.68,218.55,22.06215599]
[1731764831857,22.06215599,218.62,218.55,22.06215599]
[1731764832069,22.06215599,218.62,218.47,16.0204]
[1731764832070,22.06215599,218.63,218.56,22.06215599]
[1731764832374,23.776884,218.67,218.48,23.776884]
[1731764832375,22.06215599,218.68,218.6,22.06215599]
[1731764832677,22.06215599,218.67,218.59,22.06215599]
[1731764832877,22.06215599,218.65,218.57,22.06215599]
[1731764833173,22.06215599,218.62,218.54,22.06215599]
[1731764833356,22.06215599,218.63,218.56,22.06215599]
[1731764833870,2.7444,218.62,218.56,22.06215599]
[1731764834266,2.7443,218.64,218.58,22.06215599]
[1731764834451,2.7443,218.64,218.59,22.06215599]
[1731764835265,2.7443,218.64,218.58,22.06215599]
[1731764835660,22.06215599,218.63,218.56,22.06215599]
[1731764836874,24.80645599,218.64,218.57,22.06215599]
[1731764837057,24.80645599,218.64,218.56,22.06215599]
[1731764837260,22.06215599,218.62,218.54,22.06215599]
[1731764837448,22.06215599,218.58,218.51,22.06215599]
[1731764837650,22.06215599,218.59,218.52,22.06215599]
[1731764838578,24.80695599,218.6,218.53,22.06215599]
[1731764838775,23.776884,218.59,218.53,22.06215599]
[1731764839557,22.06215599,218.57,218.5,22.06215599]
[1731764839779,23.776884,218.53,218.47,22.06215599]
[1731764839958,22.06215599,218.52,218.45,22.06215599]
[1731764840479,24.80805599,218.5,218.43,38.08505599]
[1731764841074,23.776884,218.51,218.44,22.06215599]
[1731764841778,45.83903999,218.51,218.44,22.06215599]
[1731764842165,22.06215599,218.5,218.43,22.06215599]
[1731764842573,22.06215599,218.49,218.36,16.0284]
[1731764842902,23.776884,218.48,218.41,22.06215599]
[1731764843054,23.776884,218.48,218.42,22.06215599]
[1731764843456,23.776884,218.48,218.43,22.06215599]
[1731764843673,23.776884,218.49,218.43,22.06215599]
[1731764844056,45.83903999,218.49,218.41,26.64045599]
[1731764844256,48.58513999,218.49,218.41,26.64045599]
[1731764844983,23.776884,218.47,218.41,26.64045599]
[1731764846674,22.06215599,218.48,218.41,26.64045599]
[1731764846675,23.776884,218.48,218.41,26.64045599]
[1731764847274,23.776884,218.48,218.42,22.06215599]
[1731764847956,26.523184,218.48,218.42,22.06215599]
[1731764848160,26.523184,218.48,218.43,22.06215599]
[1731764848360,23.776884,218.49,218.43,22.06215599]
[1731764849483,48.58513999,218.49,218.42,22.06215599]
[1731764849980,48.58513999,218.49,218.4,22.06215599]
[1731764849981,45.83903999,218.47,218.4,22.06215599]
[1731764850362,45.83903999,218.47,218.37,16.0277]
[1731764850363,23.776884,218.47,218.41,22.06215599]
[1731764850575,23.776884,218.48,218.42,22.06215599]
[1731764851473,48.58523999,218.48,218.41,22.06215599]
[1731764851674,26.523084,218.48,218.42,22.06215599]
[1731764852068,24.80815599,218.5,218.43,22.06215599]
[1731764852471,23.776884,218.49,218.43,22.06215599]
[1731764852873,37.60164836,218.49,218.42,13.82476436]
[1731764853273,40.34774836,218.49,218.42,13.82476436]
[1731764853574,26.522984,218.49,218.43,13.82476436]
[1731764854371,13.82476436,218.47,218.41,13.82476436]
[1731764854697,23.776884,218.46,218.4,25.27156436]
[1731764854991,23.776884,218.46,218.41,13.82476436]
[1731764855776,16.57086436,218.49,218.43,13.82476436]
[1731764855978,16.57066436,218.51,218.44,13.82476436]
[1731764856170,6.8632,218.56,218.46,13.82476436]
[1731764856171,13.82476436,218.53,218.46,13.82476436]
[1731764856480,0.09367462,218.52,218.46,13.82476436]
[1731764856794,13.91843898,218.52,218.45,13.82476436]
[1731764857171,2.7458,218.51,218.45,13.82476436]
[1731764857382,23.776884,218.5,218.45,13.82476436]
[1731764858276,23.776884,218.5,218.44,13.82476436]
[1731764859869,2.7456,218.53,218.47,13.82476436]
[1731764860175,2.7453,218.56,218.5,13.82476436]
[1731764860493,16.56976436,218.58,218.51,13.82476436]
[1731764860965,2.745,218.58,218.52,13.82476436]
[1731764861163,2.7448,218.6,218.54,13.82476436]
[1731764861384,2.7448,218.6,218.45,0.25098]
[1731764861575,2.7448,218.6,218.54,13.82476436]
[1731764861772,13.82476436,218.62,218.56,13.82476436]
[1731764861971,2.7441,218.65,218.59,13.82476436]
[1731764862573,16.56886436,218.65,218.58,13.82476436]
[1731764862872,13.82476436,218.61,218.54,13.82476436]
[1731764863074,0.09367462,218.64,218.47,16.0204]
[1731764863075,37.60164836,218.59,218.52,13.82476436]
[1731764863587,23.776884,218.57,218.51,13.82476436]
[1731764863780,37.60164836,218.57,218.5,13.82476436]
[1731764864085,13.82476436,218.56,218.49,13.82476436]
[1731764864290,23.776884,218.55,218.49,13.82476436]
[1731764864869,37.60164836,218.55,218.48,13.82476436]
[1731764865494,40.34704836,218.55,218.48,13.82476436]
[1731764866794,26.522284,218.55,218.49,13.82476436]
[1731764868072,26.522284,218.55,218.48,13.82476436]
[1731764868591,23.776884,218.53,218.47,13.82476436]
[1731764869467,13.82476436,218.54,218.47,13.82476436]
[1731764869774,6.8611,218.63,218.51,13.82476436]
[1731764869775,23.776884,218.56,218.51,13.82476436]
[1731764869990,2.7449,218.59,218.52,13.82476436]
[1731764870182,2.7449,218.59,218.5,4.5766]
[1731764870183,2.7449,218.59,218.53,13.82476436]
[1731764870591,2.7449,218.59,218.54,13.82476436]
[1731764871076,2.7449,218.59,218.53,13.82476436]
[1731764871997,23.776884,218.58,218.52,13.82476436]
[1731764872296,13.82476436,218.58,218.51,13.82476436]
[1731764872594,13.82476436,218.58,218.5,13.82476436]
[1731764872789,13.82476436,218.58,218.51,13.82476436]
[1731764873102,16.56966436,218.59,218.52,13.82476436]
[1731764873786,13.82476436,218.58,218.51,13.82476436]
[1731764874173,16.56966436,218.59,218.52,13.82476436]
[1731764875083,16.56966436,218.59,218.51,13.82476436]
[1731764875281,16.56966436,218.59,218.47,13.82476436]
[1731764875282,13.82476436,218.56,218.47,13.82476436]
[1731764875481,13.82476436,218.54,218.47,13.82476436]